Cogmind - Beta 15 @@@ ROGUE MODE // 2025.07.14 @ 17:31:17 Player: chebyrekser Result: Destroyed by Y-54 Guardian with Flak Gun Performance ------------- Evolutions (4) 2000 Regions Visited (14) 2800 Robots Destroyed (250) 1250 Value Destroyed (10409) 10409 Prototype IDs (35) 700 Alien Tech Used (0) 0 Bonus (5132) 5132 TOTAL SCORE: 22291 Bonus ------- High Alert Combat Kills 1043 Follower Combat Kills 789 Entered Garrisons 1000 Used RIF Installer 2000 Aligned with FarCom 300 Cogmind --------- Core Integrity 0/850 Matter 216/300 Energy 215/290 System Corruption 8% Temperature Warm (100) Movement Core (1500) Ox29 Location -6/Garrison Parts ------- > --- POWER (1) -------- Improved Deuterium Engine > --- PROPULSION (4) --- (None) > --- UTILITY (8) ------ Huge Storage Unit Advanced Targeting Computer Relay Coupler [Swarmer] (24) Relay Coupler [Grunt] (9) Relay Coupler [Sentry] (1) > --- WEAPON (2) ------- (None) > --- INVENTORY (25) --- Angular Momentum Engine Advanced Heat Sink Advanced Heat Sink Structural Scanner Transmission Jammer Relay Coupler [NC] (39) Relay Coupler [Sentry] (28) Relay Coupler [Heavy] (18) Relay Coupler [Behemoth] Heavy Laser Gatling Laser Phase Cannon Power Sword Segregator Trap Peak State ------------ > --- POWER ------------ Improved Deuterium Engine > --- PROPULSION ------- Improved Heavy Treads Improved Heavy Treads > --- UTILITY ---------- Improved Cooling System Huge Storage Unit Advanced Targeting Computer Hardened Light Armor Plating Improved Light Armor Plating Relay Coupler [Grunt] Relay Coupler [Sentry] Relay Coupler [Hunter] > --- WEAPON ----------- Cooled Pulse Rifle Precision Assault Rifle > --- INVENTORY -------- Light Nuclear Core Improved Deuterium Engine Angular Momentum Engine Improved Heavy Treads Improved Heavy Treads Advanced Heat Sink Advanced Heat Sink Structural Scanner Transmission Jammer Relay Coupler [NC] Relay Coupler [Swarmer] Relay Coupler [Grunt] Relay Coupler [Sentry] Relay Coupler [Hunter] Relay Coupler [Heavy] Relay Coupler [Behemoth] Gatling Laser Phase Cannon Enhanced Autogun Heavy Rocket Launcher Remote Datajack Power Sword Segregator Trap [Rating: 78] Favorites ----------- Power Improved Deuterium Engine Engine Improved Deuterium Engine Power Core Light Nuclear Core Propulsion Light Treads Treads Light Treads Leg Aluminum Leg Wheel Wheel Utility Huge Storage Unit Device Structural Scanner Storage Huge Storage Unit Processor Advanced Targeting Computer Hackware Relay Coupler [Grunt] Protection Light Armor Plating Weapon Gatling Laser Energy Gun Gatling Laser Energy Cannon Heavy Particle Cannon Ballistic Gun Enhanced Autogun Launcher Rocket Launcher Special Weapon Remote Datajack Impact Weapon Heavy Hammer Slashing Weapon Power Sword Special Melee Weapon Improved Datajack Build | -11 -10 -10 -10 -9 -8 -8 -8 -8 -7 -7 -7 -7 -6 -6 ------- Run | Yrd Mat Min Exi Min Mat Gar Mat Gar Fac Gar Fac Gar Fac Gar Slots Evolved 8 | . . . . . 4 . . . 2 . . . 2 . Power . | . . . . . . . . . . . . . . . Propulsion 2 | . . . . . 2 . . . . . . . . . Utility 6 | . . . . . 2 . . . 2 . . . 2 . Weapon . | . . . . . . . . . . . . . . . Parts Attached 138 | 5 11 3 2 . 26 7 12 11 27 10 . 9 3 12 Power 14 | 1 1 . . . 4 . 2 . 2 . . 1 . 3 Engine 13 | 1 1 . . . 4 . 2 . 2 . . 1 . 2 Core 1 | . . . . . . . . . . . . . . 1 Reactor . | . . . . . . . . . . . . . . . Propulsion 41 | 2 4 . 1 . 9 3 5 4 8 1 . 2 . 2 Treads 24 | . . . . . 5 2 4 3 5 1 . 2 . 2 Leg 11 | 2 3 . . . 2 1 . 1 2 . . . . . Wheel 6 | . 1 . 1 . 2 . 1 . 1 . . . . . Hover . | . . . . . . . . . . . . . . . Flight . | . . . . . . . . . . . . . . . Utility 42 | . 3 . 1 . 3 2 2 3 8 7 . 6 2 5 Device 10 | . 1 . . . 1 1 1 1 3 1 . 1 . . Storage 3 | . 1 . 1 . . . . . 1 . . . . . Processor 2 | . 1 . . . 1 . . . . . . . . . Hackware 16 | . . . . . . . . 1 1 5 . 5 . 4 Protection 11 | . . . . . 1 1 1 1 3 1 . . 2 1 Artifact . | . . . . . . . . . . . . . . . Weapon 41 | 2 3 3 . . 10 2 3 4 9 2 . . 1 2 Energy Gun 17 | 2 1 . . . 4 . . 1 6 . . . 1 2 Energy Cannon 4 | . 1 . . . 2 . . . 1 . . . . . Ballistic Gun 3 | . . . . . 1 . 1 . 1 . . . . . Ballistic Cannon . | . . . . . . . . . . . . . . . Launcher 9 | . . 3 . . 1 1 1 1 . 2 . . . . Special Weapon 2 | . . . . . 1 . . . 1 . . . . . Impact Weapon 3 | . . . . . 1 1 1 . . . . . . . Slashing Weapon 2 | . 1 . . . . . . 1 . . . . . . Piercing Weapon . | . . . . . . . . . . . . . . . Special Melee Weapon 1 | . . . . . . . . 1 . . . . . . Unidentified Prototypes 6 | . . . . . 6 . . . . . . . . . Parts Lost 73 | . 3 . . . 14 3 9 6 7 5 . 7 . 19 Power 10 | . 1 . . . 3 . 1 1 . . . 1 . 3 Propulsion 28 | . 1 . . . 7 1 6 3 4 1 . 1 . 4 Utility 16 | . . . . . 1 2 . 1 2 3 . 2 . 5 Weapon 19 | . 1 . . . 3 . 2 1 1 1 . 3 . 7 Highest Loss Streak 14 | . 2 . . . 3 3 4 3 5 3 . 3 . 14 To Critical Strikes . | . . . . . . . . . . . . . . . Average Backups 20 | 3 6 9 10 12 19 24 22 22 23 22 24 22 21 20 Power 2 | . . . . . 2 3 2 2 2 2 2 3 3 2 Propulsion 2 | 2 1 1 1 3 2 4 3 2 1 1 1 1 2 1 Utility 9 | . 1 3 4 4 6 8 9 11 12 11 14 12 11 9 Weapon 5 | . 1 4 5 5 7 7 5 4 6 6 7 4 4 5 Tool/Special . | . . . . . . . . . . . . . . . Unused Backups 36 | . 1 1 . . 2 5 4 . 4 . . 7 2 10 Power 3 | . . . . . . 1 . . . . . . 1 1 Propulsion 4 | . . . . . . 1 . . . . . 2 1 . Utility 20 | . . 1 . . . 3 2 . 2 . . 5 . 7 Weapon 8 | . 1 . . . 2 . 1 . 2 . . . . 2 Tool/Special 1 | . . . . . . . 1 . . . . . . . Average Slot Usage (%) 93 | . 96 100 100 100 85 99 98 96 97 95 92 95 84 75 Engine 8 | . 13 14 14 14 8 9 8 7 6 7 7 7 6 2 Treads 17 | . . . . . 17 26 26 31 19 14 15 14 13 12 Leg 10 | . 26 28 24 14 10 9 8 4 7 15 15 12 . . Wheel 1 | . . . 3 14 2 . . . 2 . . . . . Device 10 | . 12 14 14 14 11 8 16 9 11 6 7 6 11 5 Storage 8 | . 10 14 14 14 9 9 9 9 7 7 7 7 6 6 Processor 6 | . 2 . . . 3 9 9 9 7 7 7 7 6 6 Hackware 6 | . . . . . . . . 2 11 7 7 20 20 13 Protection 5 | . . . . . 4 9 1 6 6 10 7 1 6 8 Energy Gun 6 | . 14 14 14 14 7 4 . 5 9 6 . 4 4 7 Energy Cannon 3 | . 11 . . . 4 5 13 . 1 . . . . . Ballistic Gun 1 | . . . . . 2 1 . 3 . . . 1 2 2 Launcher 2 | . . 14 14 14 1 3 1 1 . 1 . . . . Slashing Weapon 1 | . 1 . . . . . . 5 2 2 7 3 3 . Peak Build Rating 78 | 5 7 10 12 12 33 33 34 34 67 68 64 75 78 78 Average Rating 40 | 4 6 9 10 12 23 32 31 31 49 64 64 67 75 67 On Entrance 34 | . 5 7 10 12 12 33 32 30 30 66 64 64 71 78 Naked Turns . | . . . . . . . . . . . . . . . Heaviest Build 130 | 7 19 20 90 90 104 103 107 103 128 130 100 104 108 111 Greatest Support 150 | 20 20 20 20 10 64 62 60 80 80 60 60 150 150 150 Greatest Overweight (x) 31 | 1 1 . 8 8 10 1 9 2 6 2 1 1 . 31 Average Overweight (x) 1 | . . . 1 8 3 1 1 1 2 1 1 . . . Largest Inventory Capacity 25 | 5 10 10 25 25 25 25 25 25 25 25 25 25 25 25 Average Capacity 23 | 5 8 10 14 25 25 25 25 25 25 25 25 25 25 25 Most Carried 25 | 5 9 10 12 13 25 25 25 25 25 25 25 25 25 25 Average Carried 21 | 3 6 9 10 12 19 24 23 23 24 23 25 24 24 22 Final Capacity 25 | 5 10 10 25 25 25 25 25 25 25 25 25 25 25 25 Final Carried 25 | 5 9 10 12 13 25 25 20 25 25 25 25 25 25 14 Class Distribution -------------------- 49% | Bothacker-Mutant 24% | Scavenger-Mutant 15% | Mutant 9% | Botlord-Mutant Dominant Class ---------------- Mutant | -10/Materials Scavenger-Mutant | -10/Mines Scavenger-Mutant | -10/Exiles Mutant | -9/Mines Scavenger-Mutant | -8/Materials Scavenger-Mutant | -8/Garrison Bothacker-Mutant | -8/Materials Bothacker-Mutant | -8/Garrison Bothacker-Mutant | -7/Factory Bothacker-Mutant | -7/Garrison Bothacker-Mutant | -7/Factory Bothacker-Mutant | -7/Garrison Botlord-Mutant | -6/Factory Bothacker-Mutant | -6/Garrison Resources | -11 -10 -10 -10 -9 -8 -8 -8 -8 -7 -7 -7 -7 -6 -6 ----------- Run | Yrd Mat Min Exi Min Mat Gar Mat Gar Fac Gar Fac Gar Fac Gar Matter Collected 4849 | 250 115 39 45 31 574 227 357 352 864 682 81 559 244 429 Remotely . | . . . . . . . . . . . . . . . Salvage Created 8021 | 118 391 65 . 69 1376 367 1063 568 1017 756 66 1186 486 493 Parts 396 | 8 17 10 . . 54 22 60 39 53 34 6 46 32 15 Haulers Intercepted 5 | . . . . . 5 . . . . . . . . . Recyclers Shooed 14 | . . . . . 9 . . . 3 . . . 2 . Parts Field Recycled . | . . . . . . . . . . . . . . . Retrieved Matter . | . . . . . . . . . . . . . . . Parts Self-Destructed . | . . . . . . . . . . . . . . . Prevented . | . . . . . . . . . . . . . . . Kills | -11 -10 -10 -10 -9 -8 -8 -8 -8 -7 -7 -7 -7 -6 -6 ------- Run | Yrd Mat Min Exi Min Mat Gar Mat Gar Fac Gar Fac Gar Fac Gar Combat Hostiles Destroyed 186 | 1 11 7 . 2 22 14 25 17 16 28 . 19 10 14 Melee 3 | . . . . . . . . 2 . . . 1 . . Guns 67 | 1 7 . . . 8 2 5 5 9 11 . 9 3 7 Cannons 22 | . 2 . . . 4 3 12 . 1 . . . . . AOE 90 | . . 7 . 2 9 9 8 10 6 17 . 9 7 6 Classes Destroyed 17 | 3 4 . . . 4 2 . 1 . 1 1 . . 1 Worker 16 | 1 . . . . 2 . 1 . 8 . . . 4 . Builder 9 | . 1 . . . 2 . 1 . 2 . 1 . 2 . Tunneler 4 | 3 . . . . . . . . 1 . . . . . Hauler 5 | . . . . . 5 . . . . . . . . . Recycler 9 | . . . . . 4 . . . 4 . . . 1 . Mechanic 1 | . . . . . . . . . . . 1 . . . Operator 3 | . 1 . . . . . . . 1 . . . 1 . Watcher 13 | . 1 . . . 4 . 3 2 3 . . . . . Swarmer 66 | . 6 5 . . 4 7 9 . 6 9 . 11 6 3 Saboteur 3 | . . . . . . . . . . . . . . 3 Grunt 57 | 1 5 2 . 3 10 2 8 7 . 9 . 5 . 5 Brawler 6 | . . . . . 2 . . 1 . . . . . 3 Duelist 7 | . . . . . . 1 2 . . 4 . . . . Sentry 27 | . . . . . 6 3 6 3 3 3 . 2 1 . Specialist 2 | . . . . . . . . . . 2 . . . . Hunter 10 | . . . . . . 1 . 3 1 1 . . 2 2 Programmer 12 | . . . . . . . . 3 6 . . 2 1 . Best Kill Streak 8 | 2 3 3 . 2 4 7 7 3 7 7 2 8 4 7 Combat Bots Only 8 | 1 3 3 . 2 4 7 5 3 4 7 . 8 3 7 Max Kills in Single Turn 4 | 1 1 3 . 3 4 2 4 2 3 2 1 3 3 2 Gunslinging 1 | . . . . . . . . . . 1 . . . . Exploded 4 | . . 3 . 2 4 2 3 2 2 2 . 3 3 2 Melee 1 | . . . . . . . . 1 . . . 1 . . Uniques/NPCs Destroyed . | . . . . . . . . . . . . . . . Combat | -11 -10 -10 -10 -9 -8 -8 -8 -8 -7 -7 -7 -7 -6 -6 -------- Run | Yrd Mat Min Exi Min Mat Gar Mat Gar Fac Gar Fac Gar Fac Gar Hostile Shots Fired 1293 | 8 58 9 . . 115 37 116 112 128 133 . 96 44 437 Missed 427 | 3 13 2 . . 27 7 28 46 51 42 . 33 18 157 Hits 866 | 5 45 7 . . 88 30 88 66 77 91 . 63 26 280 Melee 19 | . . . . . . . 4 . . 8 . . . 7 Projectile 847 | 5 45 7 . . 88 30 84 66 77 83 . 63 26 273 AOE 6 | . . . . 2 . . . . 4 . . . . . Critical Strikes 27 | . 2 . . . 2 3 3 4 4 2 . 1 . 6 Damage Taken 13433 | 57 571 104 . 112 1228 628 1406 1104 1622 1468 . 957 265 3911 Core 2005 | 22 161 20 . . 137 25 237 123 286 16 . 123 5 850 Absorbed by Shields 70 | . . . . . . . . . . . . . . 70 Redirected to Shielding 16 | . . . . . . . . . . . . . . 16 Ignored by Resistances 150 | . . . . . . . . . . 150 . . . . Core Remaining (%) 38 | 91 . . . 18 . . . 5 . . . 39 . . Volleys Fired 558 | 20 38 5 . 1 120 22 63 50 56 57 1 47 23 55 Largest 2 | 2 2 1 . 1 2 2 2 2 2 2 1 2 2 2 Hottest 160 | 100 110 33 . 33 138 130 138 65 160 160 5 160 80 108 Shots Fired 855 | 40 76 5 . 1 197 29 109 59 96 78 1 60 33 71 Gun 520 | 40 38 . . . 139 7 20 39 71 52 . 36 28 50 Cannon 188 | . 38 . . . 36 14 85 . 15 . . . . . Launcher 98 | . . 5 . 1 12 8 4 20 9 17 . 9 4 9 Special 49 | . . . . . 10 . . . 1 9 1 15 1 12 Kinetic 88 | . . . . . 9 2 20 20 4 6 . 5 12 10 Thermal 562 | 40 73 . . . 160 19 53 19 65 46 . 31 16 40 Explosive 98 | . . 5 . 1 12 8 4 20 9 17 . 9 4 9 Electromagnetic 68 | . 3 . . . 16 . 32 . 17 . . . . . Robot Hit Streak 21 | 4 7 1 . . 13 19 16 14 21 19 2 18 13 15 Robot Miss Streak 5 | 4 3 1 . . 4 1 2 2 4 5 . 2 2 3 Penetration Max . | . . . . . . . . . . . . . . . Secondary Targets 3 | . . . . . . . . . . 1 . 1 . 1 Max Gunslinging Chain 1 | . . . . . . . . . . 1 . 1 . 1 Shots Hit Robots 642 | 18 43 1 . . 120 23 88 47 83 53 4 68 38 56 Core Hits 456 | 6 16 10 . 3 64 24 40 36 62 62 1 58 27 47 Critical Kills 5 | . 2 . . . 1 1 1 . . . . . . . Critical Parts Destroyed . | . . . . . . . . . . . . . . . Critical Strikes 29 | 3 3 . . . 12 1 1 1 . . . 3 2 3 Burn 19 | 3 1 . . . 11 . . 1 . . . . . 3 Meltdown 3 | . 2 . . . 1 . . . . . . . . . Smash 2 | . . . . . . 1 1 . . . . . . . Sever 5 | . . . . . . . . . . . . 3 2 . Melee Attacks 122 | . 3 . . . 9 8 5 20 22 3 3 29 18 2 Impact 20 | . . . . . 3 8 5 4 . . . . . . Slashing 101 | . 3 . . . 6 . . 15 22 3 3 29 18 2 Piercing . | . . . . . . . . . . . . . . . Sneak Attacks 17 | . . . . . . . 1 . 9 . 3 . 4 . Combat Hostiles . | . . . . . . . . . . . . . . . Follow-up Attacks . | . . . . . . . . . . . . . . . Damage Inflicted 25101 | 240 695 386 . 224 3322 1360 2741 2132 3262 3184 246 3657 1842 1810 Guns 7287 | 240 256 . . . 1373 106 297 537 1405 990 . 780 491 812 Cannons 3318 | . 437 . . . 539 300 1746 . 296 . . . . . Explosions 10395 | . . 386 . 223 1321 663 611 1475 608 2194 . 1242 674 998 Melee 3966 | . . . . . . 291 87 120 916 . 246 1635 671 . Ramming 46 | . 2 . . 1 . . . . 37 . . . 6 . Kinetic 1238 | . . . . . 54 10 297 309 81 62 . 67 182 176 Thermal 8922 | 240 648 . . 122 2166 396 1199 228 1337 928 . 713 309 636 Explosive 9699 | . . 386 . 101 888 663 512 1475 566 2194 . 1242 674 998 Electromagnetic 1230 | . 45 . . . 214 . 646 . 325 . . . . . Impact 378 | . . . . . . 291 87 . . . . . . . Slashing 3588 | . . . . . . . . 120 916 . 246 1635 671 . Piercing . | . . . . . . . . . . . . . . . Highest Corruption 13 | . . . . . . . . 2 13 8 8 8 1 8 Average Corruption 6 | . . . . . . . . 2 8 8 8 8 1 5 Corruption Purged 5 | . . . . . . . . . 5 . . . . . Corruption Blocked . | . . . . . . . . . . . . . . . Effects 202 | . . . . . . . . 11 60 66 6 38 6 15 Message Errors 48 | . . . . . . . . 3 11 13 2 11 2 6 Matter Fused 50 | . . . . . . . . 2 15 18 1 10 1 3 Heat Flow Errors 27 | . . . . . . . . 4 7 7 . 7 1 1 Energy Discharges 22 | . . . . . . . . 1 8 7 1 2 1 2 Parts Rejected 4 | . . . . . . . . 1 1 1 . . 1 . Parts Fused 4 | . . . . . . . . . 3 1 . . . . Data Loss (minor) 30 | . . . . . . . . . 10 11 2 4 . 3 Data Loss (major) 3 | . . . . . . . . . . 3 . . . . Misfires 7 | . . . . . . . . . 2 3 . 2 . . Alerts 5 | . . . . . . . . . 2 1 . 2 . . Weapon Failures 2 | . . . . . . . . . 1 1 . . . . Overload Shots 1 | . . . . . . . . . . . . . . 1 Overflow Damage 855 | . 31 16 . 8 73 99 42 27 283 32 90 39 115 . Projectiles 56 | . 5 . . . . . 13 . 38 . . . . . Explosions 315 | . 26 16 . 8 73 13 29 27 2 32 . 39 50 . Melee 484 | . . . . . . 86 . . 243 . 90 . 65 . Knockbacks 2 | . . . . . . 2 . . . . . . . . Impact 1 | . . . . . . 1 . . . . . . . . Kinetic . | . . . . . . . . . . . . . . . Secondary 1 | . . . . . . 1 . . . . . . . . Self-Inflicted Damage 802 | . 100 40 . 18 74 116 46 79 20 108 . 4 . 197 Shots 23 | . 1 2 . 1 2 3 1 3 2 3 . 1 . 4 Rammed 3 | . . . . 1 . . 1 . 1 . . . . . Targets Rammed 6 | . 1 . . 1 . . 1 . 2 . . . 1 . Kicked 1 | . 1 . . . . . . . . . . . . . Crushed 2 | . . . . . . . . . 1 . . . 1 . Highest Temperature 449 | 342 360 2 . . 324 147 117 189 220 321 . 449 195 142 Average Temperature 85 | 132 129 2 . . 79 55 33 46 47 91 . 121 117 61 Received Heat Transfer 2961 | 30 168 15 . . 513 171 648 387 66 342 . 255 12 354 Effects 13 | 1 3 . . . 2 . . . . 6 . 1 . . Shutdowns 2 | . 1 . . . . . . . . . . 1 . . Energy Bleed 2 | 1 . . . . 1 . . . . . . . . . Interference 8 | . 1 . . . 1 . . . . 6 . . . . Damage (minor) 1 | . 1 . . . . . . . . . . . . . Siege Activations . | . . . . . . . . . . . . . . . Martial Activations . | . . . . . . . . . . . . . . . Shielding Activations . | . . . . . . . . . . . . . . . Robots Disrupted 2 | . . . . . 2 . . . . . . . . . Combat Hostiles 2 | . . . . . 2 . . . . . . . . . Robots Corrupted 1 | . . . . . . . . . 1 . . . . . Combat Hostiles . | . . . . . . . . . . . . . . . Parts Fried 7 | . . . . . . 1 2 . 4 . . . . . Impact Corruptions 1 | . . . . . . 1 . . . . . . . . Robots Melted 6 | . 3 . . . 2 . . . . . . . . 1 Combat Hostiles 4 | . 2 . . . 1 . . . . . . . . 1 Parts Melted 58 | 2 5 . . . 16 1 2 2 14 3 . 4 . 9 Heat Transferred 19598 | 925 1628 . . 150 5539 491 1728 629 2737 2100 . 1490 659 1522 Parts Sabotaged . | . . . . . . . . . . . . . . . Parts Stolen . | . . . . . . . . . . . . . . . Parts Stripped . | . . . . . . . . . . . . . . . Power Chain Reactions 3 | . . . . . 1 . 1 . 1 . . . . . Alert | -11 -10 -10 -10 -9 -8 -8 -8 -8 -7 -7 -7 -7 -6 -6 ------- Run | Yrd Mat Min Exi Min Mat Gar Mat Gar Fac Gar Fac Gar Fac Gar Maximum Alert Level 4 | . . . . . 1 2 1 3 2 4 3 4 3 2 Low Security (%) 29 | 100 100 100 . 100 62 26 14 1 35 . . . 3 27 Level 1 32 | . . . . . 37 45 85 23 47 13 . . 4 57 Level 2 20 | . . . . . . 28 . 40 17 21 28 19 92 14 Level 3 12 | . . . . . . . . 33 . 21 71 78 . . Level 4 4 | . . . . . . . . . . 43 . 1 . . Level 5 . | . . . . . . . . . . . . . . . High Security . | . . . . . . . . . . . . . . . Max Security . | . . . . . . . . . . . . . . . Peak Influence 1466 | 26 150 112 . 104 279 578 395 914 479 1466 769 1172 693 417 Initial 769 | . . 2 . . 9 4 281 174 479 204 769 466 615 64 Average 403 | 3 52 32 . 68 147 298 261 573 236 936 723 863 577 270 Influence Increases 8124 | 41 410 214 . 104 940 604 828 880 687 1412 18 936 425 625 Destroy 0b10 Robot/C 4240 | 20 220 140 . 60 440 280 500 360 320 680 . 520 260 440 Destroy 0b10 Robot/NC 345 | 20 15 . . . 85 10 25 10 95 . 15 30 40 . Destroy Leader 712 | . 42 20 . 10 118 30 156 40 126 60 . 20 60 30 Allied During Kill 161 | . . 14 . 7 . . . 2 . 46 3 40 8 41 Successful Hack 153 | . 35 . . . 61 . 13 14 12 . . . 18 . Disable Machine 315 | . 45 . . 15 105 30 15 . 90 . . 15 . . Anti-Garrison Action 1300 | . . . . . . 200 . 300 . 500 . 250 . 50 Destroy Structure 718 | 1 23 40 . 12 71 54 44 139 44 126 . 61 39 64 Lose Combat Pursuer 180 | . 30 . . . 60 . 75 15 . . . . . . Influence Decreases 7805 | 41 403 125 96 80 957 33 1138 234 1309 238 817 431 1505 398 Entered New Map 2516 | . . 5 96 . 15 3 297 94 435 88 697 201 557 28 Time Decay 2940 | 41 239 120 . 60 607 . 601 . 654 . 120 . 498 . Lost Part 693 | . 30 . . . 103 30 90 60 70 50 . 70 . 190 Lost Ally 540 | . . . . 20 . . . 80 . 100 . 160 . 180 Purge Threat 1116 | . 134 . . . 232 . 150 . 150 . . . 450 . Squads Dispatched 15 | . 1 . . . . . 8 . 4 . . . 2 . Investigation 2 | . . . . . . . 2 . . . . . . . Extermination 6 | . . . . . . . . . 4 . . . 2 . Reinforcement 2 | . 1 . . . . . 1 . . . . . . . Assault . | . . . . . . . . . . . . . . . Garrison 5 | . . . . . . . 5 . . . . . . . Intercept . | . . . . . . . . . . . . . . . Searches Triggered . | . . . . . . . . . . . . . . . Construction Impeded 1 | . . . . . . . 1 . . . . . . . Haulers Reinforced . | . . . . . . . . . . . . . . . Active Scanning Responses . | . . . . . . . . . . . . . . . Cargo Convoy Interrupts . | . . . . . . . . . . . . . . . Stealth | -11 -10 -10 -10 -9 -8 -8 -8 -8 -7 -7 -7 -7 -6 -6 --------- Run | Yrd Mat Min Exi Min Mat Gar Mat Gar Fac Gar Fac Gar Fac Gar Distress Signals 12 | . . . . . 3 . 6 2 1 . . . . . Communications Jammed . | . . . . . . . . . . . . . . . Distress Signals . | . . . . . . . . . . . . . . . Times Spotted 285 | 1 18 8 . 5 33 15 35 22 26 39 . 34 13 36 Peak Tracking Total 9 | 1 3 3 . 2 4 7 5 5 3 6 . 7 3 9 Tactical Retreats 11 | . 2 . . . 3 . 5 1 . . . . . . Traps | -11 -10 -10 -10 -9 -8 -8 -8 -8 -7 -7 -7 -7 -6 -6 ------- Run | Yrd Mat Min Exi Min Mat Gar Mat Gar Fac Gar Fac Gar Fac Gar Traps Triggered 28 | . . . . . . 5 . 6 5 2 . 8 1 1 Indirectly . | . . . . . . . . . . . . . . . Trap Hack Attempts . | . . . . . . . . . . . . . . . Triggered . | . . . . . . . . . . . . . . . Disarmed . | . . . . . . . . . . . . . . . Reprogrammed . | . . . . . . . . . . . . . . . Reused . | . . . . . . . . . . . . . . . Traps Extracted . | . . . . . . . . . . . . . . . Installed . | . . . . . . . . . . . . . . . Triggered . | . . . . . . . . . . . . . . . Most Traps Carried 1 | . . . . . . 1 1 1 1 1 1 1 1 1 Machines | -11 -10 -10 -10 -9 -8 -8 -8 -8 -7 -7 -7 -7 -6 -6 ---------- Run | Yrd Mat Min Exi Min Mat Gar Mat Gar Fac Gar Fac Gar Fac Gar Machines Disabled 34 | . 3 . . 1 7 4 1 2 6 5 . 4 . 1 Max in Single Turn 1 | . 1 . . 1 1 1 1 1 1 1 . 1 . 1 Garrison Relay 13 | . . . . . . 2 . 2 . 5 . 3 . 1 Machines Repaired . | . . . . . . . . . . . . . . . Machines Dismantled . | . . . . . . . . . . . . . . . Machines Sabotaged . | . . . . . . . . . . . . . . . Overloaded Fab Kills . | . . . . . . . . . . . . . . . Hacking | -11 -10 -10 -10 -9 -8 -8 -8 -8 -7 -7 -7 -7 -6 -6 --------- Run | Yrd Mat Min Exi Min Mat Gar Mat Gar Fac Gar Fac Gar Fac Gar Machines Accessed 51 | . 7 . 4 . 9 2 7 1 11 2 2 1 5 . Terminals 38 | . 7 . . . 8 2 5 1 8 2 1 1 3 . Fabricators 1 | . . . . . . . . . 1 . . . . . Repair Stations . | . . . . . . . . . . . . . . . Recycling Units . | . . . . . . . . . . . . . . . Scanalyzers 3 | . . . . . . . 1 . 1 . . . 1 . Garrison Access 5 | . . . . . 1 . 1 . 1 . 1 . 1 . Total Hacks 158 | . 29 . 20 . 34 4 21 2 24 3 4 1 16 . Successful 90 | . 17 . 20 . 21 1 7 1 12 . 2 1 8 . Failed 68 | . 12 . . . 13 3 14 1 12 3 2 . 8 . Catastrophic 5 | . . . . . . 1 1 . 3 . . . . . Database Lockouts . | . . . . . . . . . . . . . . . Manual 85 | . 16 . 1 . 26 . 15 . 13 . 3 . 11 . Terminals 124 | . 29 . . . 32 4 16 2 20 3 3 1 14 . Fabricators 1 | . . . . . . . . . 1 . . . . . Repair Stations . | . . . . . . . . . . . . . . . Recycling Units . | . . . . . . . . . . . . . . . Scanalyzers 7 | . . . . . . . 4 . 2 . . . 1 . Garrison Access 6 | . . . . . 2 . 1 . 1 . 1 . 1 . Terminal Hacks 59 | . 12 . 20 . 13 1 2 1 5 . . 1 4 . Record 26 | . 3 . 19 . 1 . 1 . 2 . . . . . Prototype ID Bank 4 | . . . . . 3 . . . . . . . 1 . Open Door 1 | . . . . . . 1 . . . . . . . . Branch Access Points 1 | . 1 . . . . . . . . . . . . . Emergency Access Points 3 | . 1 . . . . . . 1 . . . 1 . . Terminal Index 1 | . 1 . . . . . . . . . . . . . Unreport Threat 8 | . 1 . . . 2 . 1 . 1 . . . 3 . Locate Traps 4 | . 1 . . . 2 . . . 1 . . . . . Hauler Manifests 2 | . . . . . 2 . . . . . . . . . Zone Layout 8 | . 4 . . . 3 . . . 1 . . . . . Proto ID Catalog 1 | . . . 1 . . . . . . . . . . . Fabricator Hacks 1 | . . . . . . . . . 1 . . . . . Load Schematic 1 | . . . . . . . . . 1 . . . . . Repair Station Hacks . | . . . . . . . . . . . . . . . Recycling Unit Hacks . | . . . . . . . . . . . . . . . Scanalyzer 4 | . . . . . . . 2 . 2 . . . . . Insert Component 3 | . . . . . . . 2 . 1 . . . . . Analyze 1 | . . . . . . . . . 1 . . . . . Garrison Access Hacks 5 | . . . . . 1 . 1 . 1 . 1 . 1 . Unlock Access 5 | . . . . . 1 . 1 . 1 . 1 . 1 . Unauthorized Hacks 21 | . 5 . . . 7 . 2 . 3 . 1 . 3 . Terminals 21 | . 5 . . . 7 . 2 . 3 . 1 . 3 . Assimilate 2 | . . . . . 1 . . . . . 1 . . . Botnet 19 | . 5 . . . 6 . 2 . 3 . . . 3 . Fabricators . | . . . . . . . . . . . . . . . Repair Stations . | . . . . . . . . . . . . . . . Recycling Units . | . . . . . . . . . . . . . . . Scanalyzers . | . . . . . . . . . . . . . . . Garrison Access . | . . . . . . . . . . . . . . . Data Cores Recovered 3 | . 1 . . . . . . . . . 1 . 1 . Used . | . . . . . . . . . . . . . . . Hacking Detections 42 | . 7 . . . 9 2 7 1 9 2 1 . 4 . Full Trace Events 6 | . 3 . . . . . 2 . . 1 . . . . Feedback Events . | . . . . . . . . . . . . . . . Feedback Blocked . | . . . . . . . . . . . . . . . Robot Schematics Acquired . | . . . . . . . . . . . . . . . Robots Built . | . . . . . . . . . . . . . . . Authchips . | . . . . . . . . . . . . . . . Time . | . . . . . . . . . . . . . . . Total Robot Build Rating . | . . . . . . . . . . . . . . . Part Schematics Acquired 1 | . . . . . . . . . 1 . . . . . Parts Built . | . . . . . . . . . . . . . . . Authchips . | . . . . . . . . . . . . . . . Time . | . . . . . . . . . . . . . . . Total Part Build Rating . | . . . . . . . . . . . . . . . Parts Repaired . | . . . . . . . . . . . . . . . Time . | . . . . . . . . . . . . . . . Parts Recycled . | . . . . . . . . . . . . . . . Recycled Matter . | . . . . . . . . . . . . . . . Retrieved Matter . | . . . . . . . . . . . . . . . Retrieved Components . | . . . . . . . . . . . . . . . Parts Scanalyzed 2 | . . . . . . . 1 . 1 . . . . . Part Schematics Acquired 1 | . . . . . . . . . 1 . . . . . Parts Damaged 1 | . . . . . . . 1 . . . . . . . Bothacking | -11 -10 -10 -10 -9 -8 -8 -8 -8 -7 -7 -7 -7 -6 -6 ------------ Run | Yrd Mat Min Exi Min Mat Gar Mat Gar Fac Gar Fac Gar Fac Gar Used RIF Installer 4 | . . . . . . 1 . 1 . 1 . 1 . . Coupler Efficiency 1 | . . . . . . . . . . . . 1 . . Patrol Navigation 1 | . . . . . . . . . . 1 . . . . Program Shield 1 | . . . . . . . . 1 . . . . . . Robots Hacked 30 | . . . . . . . . 1 . 8 1 10 1 9 Non-combat 1 | . . . . . . . . . . . 1 . . . Combat 29 | . . . . . . . . 1 . 8 . 10 1 9 Robot Hacks Applied 34 | . . . . . . . . 1 . 8 1 12 1 11 parse_system 2 | . . . . . . . . . . . 1 1 . . reboot_propulsion 2 | . . . . . . . . . . . . 1 . 1 disrupt_area 2 | . . . . . . . . . . . . . . 2 spike_heat 1 | . . . . . . . . . . 1 . . . . disable_weapons 3 | . . . . . . . . . . . . 2 1 . reboot_system 1 | . . . . . . . . . . . . 1 . . go_dormant 1 | . . . . . . . . . . . . 1 . . streamctrl_high 4 | . . . . . . . . . . . . . . 4 formatsys_high 18 | . . . . . . . . 1 . 7 . 6 . 4 Relay Couplers Released 65 | . . . . . . 8 . 10 4 24 . 14 . 5 Machine Destruction 61 | . . . . . . 8 . 10 . 24 . 14 . 5 Programmers 4 | . . . . . . . . . 4 . . . . . Attached 15 | . . . . . . . . 1 . 5 . 5 . 4 Fabnet Peak Effective % . | . . . . . . . . . . . . . . . Robots Rewired 9 | . . . . . . . . 3 . 2 . . . 4 Allies Hacked . | . . . . . . . . . . . . . . . Hacks Repelled . | . . . . . . . . . . . . . . . Allies | -11 -10 -10 -10 -9 -8 -8 -8 -8 -7 -7 -7 -7 -6 -6 -------- Run | Yrd Mat Min Exi Min Mat Gar Mat Gar Fac Gar Fac Gar Fac Gar Total Allies 34 | . . 3 . . . . . 4 . 9 . 6 . 12 Largest Group 5 | . . 3 3 2 . . . 3 . 4 4 4 1 5 Highest-Rated Group 169 | . . 40 40 32 . . . 48 . 82 82 82 32 169 Highest-Rated Ally 41 | . . 16 16 16 . . . 16 . 32 30 32 32 41 Total Orders . | . . . . . . . . . . . . . . . Ally Attacks 148 | . . . . 11 . . . 19 . 37 2 34 4 41 Total Damage 2900 | . . . . 141 . . . 214 . 807 65 694 92 887 Kills 27 | . . . . 1 . . . 1 . 6 1 7 3 8 Allies Corrupted 2 | . . . . . . . . . . 1 . . 1 . Allies Melted 1 | . . . . . . . . . . . . . . 1 Intel | -11 -10 -10 -10 -9 -8 -8 -8 -8 -7 -7 -7 -7 -6 -6 ------- Run | Yrd Mat Min Exi Min Mat Gar Mat Gar Fac Gar Fac Gar Fac Gar Active Infowar (turns) 8920 | . 699 448 729 137 2839 356 1525 34 1200 . . . 953 . Structural 8920 | . 699 448 729 137 2839 356 1525 34 1200 . . . 953 . Robot Analysis Total . | . . . . . . . . . . . . . . . Derelict Logs Recovered 3 | . . 2 . 1 . . . . . . . . . . Drone Launches . | . . . . . . . . . . . . . . . Drone Recoveries . | . . . . . . . . . . . . . . . Exploration | -11 -10 -10 -10 -9 -8 -8 -8 -8 -7 -7 -7 -7 -6 -6 ------------- Run | Yrd Mat Min Exi Min Mat Gar Mat Gar Fac Gar Fac Gar Fac Gar Turns Passed 17969 | 229 778 448 729 137 2839 1331 1936 1807 2422 1912 252 1221 1325 603 Spaces Moved 7565 | 155 494 351 516 67 906 495 665 621 930 861 131 537 628 208 Core 58 | 57 . . . . . . . . . . . . . 1 Treads 3494 | . . . . . 584 495 651 621 216 . . 92 628 207 Legs 3275 | 98 481 351 418 . 38 . . . 452 861 131 445 . . Wheels 738 | . 13 . 98 67 284 . 14 . 262 . . . . . Hover . | . . . . . . . . . . . . . . . Flight . | . . . . . . . . . . . . . . . Fastest Speed 50 | 50 95 120 120 200 200 241 215 242 125 170 170 160 160 160 Average Speed 194 | 97 119 120 135 200 250 244 244 243 207 192 170 170 160 167 Slowest Speed 1600 | 120 120 120 200 200 820 246 325 325 325 250 170 240 160 1600 Overloaded Moves 10 | . . . . . . . . . 10 . . . . . Propulsion Burnouts . | . . . . . . . . . . . . . . . Robots Hopped . | . . . . . . . . . . . . . . . Potential Cave-ins . | . . . . . . . . . . . . . . . Cave-ins Triggered 2 | . . . . . . . . . 1 . . . . 1 Exploration Rate (%) 47 | 8 74 84 71 21 67 40 52 75 35 64 7 68 21 23 Regions Visited 14 Branch Regions 3 Pre-discovered Areas 3 | . . 2 1 . . . . . . . . . . . Known Exits Taken 6 | . 1 . . . 1 . 1 . 1 . 1 . 1 . Unknown Exits Taken 4 | 1 . 1 1 1 . . . . . . . . . . Scrap Searched 2 | . . 1 . 1 . . . . . . . . . . Spaces Dug 103 | . 1 . . . 2 10 4 31 4 34 . 13 4 . Terrain Destroyed 743 | . 19 57 . 12 67 76 43 106 63 117 . 55 42 86 Melee 16 | . 1 . . . 2 1 4 . 4 . . . 4 . Projectile 15 | . . . . . 7 1 7 . . . . . . . AOE 712 | . 18 57 . 12 58 74 32 106 59 117 . 55 38 86 Terrain Rammed . | . . . . . . . . . . . . . . . Walls Destroyed . | . . . . . . . . . . . . . . . Machines Disabled . | . . . . . . . . . . . . . . . Actions | -11 -10 -10 -10 -9 -8 -8 -8 -8 -7 -7 -7 -7 -6 -6 --------- Run | Yrd Mat Min Exi Min Mat Gar Mat Gar Fac Gar Fac Gar Fac Gar Total 9778 | 192 597 375 547 69 1248 575 862 831 1281 1025 155 740 880 401 Wait 830 | 5 36 8 28 . 107 13 83 43 176 21 20 30 185 75 Move 7553 | 154 493 350 515 66 906 494 664 620 929 860 131 536 627 208 Hop . | . . . . . . . . . . . . . . . Pick Up 170 | 8 10 4 2 1 42 10 11 14 28 10 . 20 4 6 Fast Attach 13 | 2 3 . . . 2 1 . . 3 1 . . 1 . Attach 93 | 3 3 . . . 21 3 8 7 14 7 . 10 2 15 Detach 1 | . . . . . . . . . . . . . . 1 Swap 183 | . 6 3 2 . 24 9 19 14 31 26 . 20 17 12 Drop 79 | . 4 5 . . 14 9 8 2 20 2 . 13 2 . Fire 558 | 20 38 5 . 1 120 22 63 50 56 57 1 47 23 55 Melee 122 | . 3 . . . 9 8 5 20 22 3 3 29 18 2 Ram 1 | . . . . 1 . . . . . . . . . . Kick 1 | . 1 . . . . . . . . . . . . . Crush 4 | . . . . . . . 1 . 2 . . . 1 . Escape Stasis 54 | . . . . . . 6 . 8 . 5 . 35 . . Rewire 116 | . . . . . 3 . . 53 . 33 . . . 27 Trap . | . . . . . . . . . . . . . . . Miscellaneous . | . . . . . . . . . . . . . . . Route ------- -11/Scrapyard -10/Materials (discovered 2 exits: [*Mat] / *Min) -10/Mines (discovered 3 exits: [*Mat x2] / *Exi) -10/Exiles -9/Mines -8/Materials (discovered 6 exits: *Fac x3 / [*Sto x2] / Gar) -8/Garrison -8/Materials (discovered 2 exits: *Fac / Gar) -8/Garrison (discovered 3 exits: *Fac x3) -7/Factory (discovered 3 exits: *Fac / [*Low] / Gar) -7/Garrison (discovered 2 exits: *Fac x2) -7/Factory (discovered 2 exits: [*Low] / Gar) -7/Garrison (discovered 4 exits: *Fac x3 / [*Fac]) -6/Factory (discovered 2 exits: [*Low] / Gar) -6/Garrison History --------- Turn | Location | Event 2 | -11/Scrapyard | Met Revision 17 70 | -11/Scrapyard | Discovered new exit (range 8) 230 | -11/Scrapyard | Entered Materials 330 | -10/Materials | Build established: Mutant 351 | -10/Materials | Identified exit to Mines 640 | -10/Materials | Discovered new exit (range 11) 745 | -10/Materials | Core integrity fell below 50% 1008 | -10/Materials | Entered Mines 1019 | -10/Mines | Learned location of Recycling (-8) 1049 | -10/Mines | A weapon hastily lodged in a ceiling crevice suddenly fell to the ground 1089 | -10/Mines | Discovered new exit (range 6) 1105 | -10/Mines | Received a Rocket Launcher from a helpful Derelict 1121 | -10/Mines | Assisted by bots powering up and referring to "LRC-V3" 1132 | -10/Mines | Build established: Scavenger-Mutant 1187 | -10/Mines | Found a damaged Exp. Sensor Array with a note attached 1228 | -10/Mines | Found Prototype Device 1252 | -10/Mines | Learned location of Zion (-7) 1354 | -10/Mines | Core integrity fell below 20% 1375 | -10/Mines | Discovered new exit (range 10) 1440 | -10/Mines | Deemed a non-threat by the Exiles lab entrance 1440 | -10/Mines | Discovered new exit (range 6) 1456 | -10/Mines | Entered Exiles 1456 | -10/Exiles | Accompanied by 3 allies 1490 | -10/Exiles | Met 8R-AWN 1513 | -10/Exiles | Met EX-HEX 1566 | -10/Exiles | Met EX-DEC 1696 | -10/Exiles | Met EX-BIN 1944 | -10/Exiles | Aligned with FarCom system 1945 | -10/Exiles | Given EX-Vault access code 1973 | -10/Exiles | Opened EX-Vault 1995 | -10/Exiles | Found Potential Leg 1998 | -10/Exiles | Found Potential Leg 2041 | -10/Exiles | Warned to stay clear of 0b10 Research branches 2167 | -10/Exiles | Discovered new exit (range 10) 2185 | -10/Exiles | Left Exiles lab with Potential Leg 2185 | -10/Exiles | Entered Mines 2185 | -9/Mines | Accompanied by 3 allies 2258 | -9/Mines | Learned Materials emergency access door positions 2275 | -9/Mines | Build established: Mutant 2298 | -9/Mines | Discovered new exit (range 12) 2311 | -9/Mines | Assembled infested the area 2316 | -9/Mines | Assisted by a Guerilla fighting off Assembled 2322 | -9/Mines | Entered Materials 2322 | -8/Materials | Evolved 4 slots: Propulsion x2, Utility x2 2360 | -8/Materials | Discovered new exit (range 16) 2675 | -8/Materials | Lost 3 parts (1p1n1w) 2928 | -8/Materials | Build established: Scavenger-Mutant 3136 | -8/Materials | Discovered new exit (range 10) 3291 | -8/Materials | Lost 3 parts (1p1n1w) 4526 | -8/Materials | Discovered new exit (range 12) 4561 | -8/Materials | Build established: Mutant 4797 | -8/Materials | Discovered new exit (range 6) 5031 | -8/Materials | Discovered new exit (range 10) 5161 | -8/Materials | Identified exit to Garrison 5161 | -8/Materials | Entered Garrison 5273 | -8/Garrison | Triggered checkpoint 5461 | -8/Garrison | Triggered checkpoint 5545 | -8/Garrison | Destroyed 7 combat bots 5548 | -8/Garrison | Lost 3 parts (1n2u) 5595 | -8/Garrison | Installed Relay Interface Framework 5614 | -8/Garrison | Discovered new exit (range 13) 5787 | -8/Garrison | Triggered checkpoint 5806 | -8/Garrison | Build established: Scavenger-Mutant 5866 | -8/Garrison | Garrison Relay disabled 6116 | -8/Garrison | Garrison Relay disabled 6492 | -8/Garrison | Entered Materials 6875 | -8/Materials | Build established: Bothacker-Mutant 7432 | -8/Materials | Garrison activated, responded to threat 7982 | -8/Materials | Build established: Scavenger-Mutant 8111 | -8/Materials | Core integrity fell below 50% 8159 | -8/Materials | Discovered new exit (range 15) 8308 | -8/Materials | Garrison activated, responded to threat 8363 | -8/Materials | Lost 4 parts (3n1w) 8422 | -8/Materials | Identified exit to Garrison 8428 | -8/Materials | Entered Garrison 8460 | -8/Garrison | Triggered checkpoint 8532 | -8/Garrison | Triggered checkpoint 8545 | -8/Garrison | Garrison Relay disabled 8584 | -8/Garrison | Build established: Bothacker-Mutant 8825 | -8/Garrison | Lost 3 allies 9070 | -8/Garrison | Triggered checkpoint 9077 | -8/Garrison | Triggered checkpoint 9183 | -8/Garrison | Core integrity fell below 20% 9349 | -8/Garrison | Discovered new exit (range 14) 9762 | -8/Garrison | Discovered new exit (range 10) 9914 | -8/Garrison | Triggered checkpoint 9955 | -8/Garrison | Lost 3 parts (1p2n) 9992 | -8/Garrison | Garrison Relay disabled 10060 | -8/Garrison | Triggered checkpoint 10151 | -8/Garrison | Expanded RIF knowledge: Program Shield 10194 | -8/Garrison | Discovered new exit (range 10) 10235 | -8/Garrison | Entered Factory 10235 | -7/Factory | Evolved 2 slots: Utility x2 11415 | -7/Factory | Crushed by falling debris 11415 | -7/Factory | System corruption reached 10% 11463 | -7/Factory | Lost 5 parts (3n1u1w) 11885 | -7/Factory | Discovered new exit (range 15) 12340 | -7/Factory | Discovered new exit (range 5) 12645 | -7/Factory | Identified exit to Garrison 12657 | -7/Factory | Entered Garrison 12681 | -7/Garrison | Triggered checkpoint 12719 | -7/Garrison | Triggered checkpoint 12892 | -7/Garrison | Triggered checkpoint 13101 | -7/Garrison | Garrison Relay disabled 13215 | -7/Garrison | Triggered checkpoint 13238 | -7/Garrison | Triggered checkpoint 13312 | -7/Garrison | Triggered checkpoint 13313 | -7/Garrison | Triggered checkpoint 13344 | -7/Garrison | Destroyed 7 combat bots 13431 | -7/Garrison | Lost 3 parts (1n1u1w) 13616 | -7/Garrison | Discovered new exit (range 14) 13677 | -7/Garrison | Spotted B-75 Beast 13677 | -7/Garrison | Spotted B-75 Beast 13766 | -7/Garrison | Destroyed 7 combat bots 13830 | -7/Garrison | Discovered new exit (range 15) 13860 | -7/Garrison | Expanded RIF knowledge: Patrol Navigation 13903 | -7/Garrison | Triggered checkpoint 13934 | -7/Garrison | Garrison Relay disabled 14011 | -7/Garrison | Triggered checkpoint 14569 | -7/Garrison | Entered Factory 14569 | -7/Factory | Accompanied by 4 allies 14686 | -7/Factory | Discovered new exit (range 9) 14816 | -7/Factory | Identified exit to Garrison 14821 | -7/Factory | Entered Garrison 14821 | -7/Garrison | Accompanied by 4 allies 14857 | -7/Garrison | Triggered checkpoint 14864 | -7/Garrison | Garrison Relay disabled 14986 | -7/Garrison | Triggered checkpoint 14988 | -7/Garrison | Triggered checkpoint 15034 | -7/Garrison | Lost 3 parts (2u1w) 15044 | -7/Garrison | Lost 4 allies 15054 | -7/Garrison | Triggered checkpoint 15078 | -7/Garrison | Core integrity fell below 50% 15100 | -7/Garrison | Destroyed 8 combat bots 15106 | -7/Garrison | Lost 3 parts (1p1n1w) 15153 | -7/Garrison | Triggered checkpoint 15192 | -7/Garrison | Garrison Relay disabled 15253 | -7/Garrison | Discovered new exit (range 15) 15391 | -7/Garrison | Discovered new exit (range 12) 15399 | -7/Garrison | Triggered checkpoint 15441 | -7/Garrison | Discovered new exit (range 6) 15621 | -7/Garrison | Discovered new exit (range 10) 15663 | -7/Garrison | Triggered checkpoint 15778 | -7/Garrison | Expanded RIF knowledge: Coupler Efficiency 15952 | -7/Garrison | Garrison Relay disabled 16042 | -7/Garrison | Entered Factory 16042 | -6/Factory | Accompanied by 1 ally 16042 | -6/Factory | Evolved 2 slots: Utility x2 16063 | -6/Factory | Build established: Botlord-Mutant 16984 | -6/Factory | Discovered new exit (range 11) 17361 | -6/Factory | Identified exit to Garrison 17367 | -6/Factory | Entered Garrison 17443 | -6/Garrison | Triggered checkpoint 17501 | -6/Garrison | Garrison Relay disabled 17561 | -6/Garrison | Crushed by falling debris 17586 | -6/Garrison | Destroyed 7 combat bots 17592 | -6/Garrison | Lost 4 parts (1p2u1w) 17748 | -6/Garrison | Triggered checkpoint 17761 | -6/Garrison | Triggered checkpoint 17801 | -6/Garrison | Lost 6 allies 17849 | -6/Garrison | Build established: Bothacker-Mutant 17922 | -6/Garrison | Triggered checkpoint 17939 | -6/Garrison | Spotted Striker 17956 | -6/Garrison | Core integrity fell below 50% 17968 | -6/Garrison | Core integrity fell below 20% 17970 | -6/Garrison | Destroyed by Y-54 Guardian with Flak Gun Last Messages --------------- H-66 Slayer heat damages Hvy. Assault Rifle. Jacked S-27 Virus... >>streamctrl_high Hijacking control node. Remote Datajack destroyed. Destroyed Phase Shifter. Slug penetrates Wall. H-66 Slayer heat damages Targeting Computer. H-66 Slayer destroyed. Virus 5a destroyed. Critical hit (Impale). Enh. Autogun destroyed. Imp. Deuterium Engine destroyed. /VKW5L>